Cogmind - Beta 9.6 *** ADVENTURER MODE // 2020.07.11 @ 17:20:46 Player: Symyn Result: Self-destructed Performance ------------- Evolutions (1) 500 Regions Visited (2) 400 Robots Destroyed (28) 140 Value Destroyed (665) 665 Prototype IDs (5) 100 Alien Tech Used (0) 0 Bonus (0) 0 TOTAL SCORE: 1805 Bonus ------- None Cogmind --------- Core Integrity 321/400 Matter 263/300 Energy 265/265 System Corruption 0% Temperature Cool (32) Movement Walking (180) Ox2 Location -9/Materials Parts ------- > --- POWER (1) -------- Improved Ion Engine > --- PROPULSION (3) --- Aluminum Leg Aluminum Leg > --- UTILITY (3) ------ Large Storage Unit Large Storage Unit Signal Interpreter > --- WEAPON (2) ------- Particle Cannon Minigun > --- INVENTORY (16) --- Large Matter Pod (150) Improved Signal Interpreter Maneuvering Thrusters Medium Armor Plating Heavy EM Pulse Gun EM Shotgun Medium Laser Particle Cannon Advanced Beam Cannon Advanced Beam Cannon Minigun Grenade Launcher Mini Grenade Launcher Mini Grenade Launcher Peak State ------------ > --- POWER ------------ Light Ion Engine > --- PROPULSION ------- Aluminum Leg Aluminum Leg Aluminum Leg > --- UTILITY ---------- Medium Storage Unit Medium Storage Unit Signal Interpreter > --- WEAPON ----------- Advanced Beam Cannon Mini Grenade Launcher > --- INVENTORY -------- Large Matter Pod Improved Signal Interpreter Medium Armor Plating Heavy EM Pulse Gun EM Shotgun Medium Laser Particle Cannon Particle Cannon Advanced Beam Cannon Grenade Launcher Mini Grenade Launcher [Rating: 14] Favorites ----------- Power Improved Ion Engine Engine Improved Ion Engine Propulsion Aluminum Leg Leg Aluminum Leg Utility Medium Storage Unit Storage Medium Storage Unit Processor Signal Interpreter Protection Medium Armor Plating Weapon Particle Cannon Energy Gun EM Pulse Gun Energy Cannon Particle Cannon Ballistic Gun Light Assault Rifle Launcher Mini Grenade Launcher Build | -11 -10 -9 ------- Run | Scr Mat Mat Slots Evolved 2 | . . 2 Power . | . . . Propulsion 1 | . . 1 Utility 1 | . . 1 Weapon . | . . . Parts Attached 28 | 4 5 19 Power 4 | . 2 2 Engine 4 | . 2 2 Core . | . . . Reactor . | . . . Propulsion 7 | 1 1 5 Treads . | . . . Leg 7 | 1 1 5 Wheel . | . . . Hover . | . . . Flight . | . . . Utility 7 | 1 1 5 Device . | . . . Storage 5 | 1 . 4 Processor 1 | . 1 . Hackware . | . . . Protection 1 | . . 1 Artifact . | . . . Weapon 10 | 2 1 7 Energy Gun 4 | 2 . 2 Energy Cannon 3 | . . 3 Ballistic Gun 2 | . 1 1 Ballistic Cannon . | . . . Launcher 1 | . . 1 Special Weapon . | . . . Impact Weapon . | . . . Slashing Weapon . | . . . Piercing Weapon . | . . . Special Melee Weapon . | . . . Unidentified Prototypes 1 | . . 1 Parts Lost 5 | . . 5 Power 2 | . . 2 Propulsion 2 | . . 2 Utility . | . . . Weapon 1 | . . 1 Highest Loss Streak 2 | . . 2 Average Slot Usage (%) 94 | . 90 96 Engine 11 | . 14 10 Leg 29 | . 28 30 Storage 18 | . 14 20 Processor 9 | . 4 11 Energy Gun 12 | . 24 7 Energy Cannon 8 | . . 11 Ballistic Gun 2 | . 3 2 Naked Turns . | . . . Heaviest Build 47 | 8 15 47 Greatest Support 30 | 10 20 30 Greatest Overweight (x) 15 | . . 15 Average Overweight (x) . | . . . Largest Inventory Capacity 16 | 6 6 16 Average Capacity 10 | 5 6 12 Most Carried 16 | 4 6 16 Average Carried 8 | 2 3 10 Final Capacity 16 | 6 6 16 Final Carried 14 | 3 6 14 Class Distribution -------------------- 100% | Mutant Dominant Class ---------------- Mutant | -10/Materials Mutant | -9/Materials Resources | -11 -10 -9 ----------- Run | Scr Mat Mat Matter Collected 631 | 216 79 336 Remotely . | . . . Salvage Created 827 | 18 88 721 Parts 64 | 3 4 57 Haulers Intercepted 1 | . . 1 Recyclers Shooed . | . . . Parts Field Recycled . | . . . Retrieved Matter . | . . . Parts Self-Destructed . | . . . Prevented . | . . . Kills | -11 -10 -9 ------- Run | Scr Mat Mat Combat Hostiles Destroyed 19 | . 2 17 Guns 3 | . 1 2 Cannons 13 | . . 13 AOE 2 | . 1 1 Classes Destroyed 8 | 1 1 6 Builder 1 | . . 1 Tunneler 1 | 1 . . Hauler 1 | . . 1 Operator 2 | . . 2 Watcher 4 | . . 4 Swarmer 8 | . . 8 Grunt 6 | . 2 4 Sentry 5 | . . 5 Best Kill Streak 8 | 1 2 8 Combat Bots Only 6 | . 2 6 Max Kills in Single Turn 2 | 1 1 2 Gunslinging . | . . . Exploded 1 | . 1 1 Melee . | . . . Uniques/NPCs Destroyed . | . . . Combat | -11 -10 -9 -------- Run | Scr Mat Mat Damage Taken 820 | . 151 669 Core 79 | . . 79 Absorbed by Shields . | . . . Core Remaining (%) 100 | 100 100 . Volleys Fired 69 | 1 8 60 Largest 2 | 2 2 2 Hottest 136 | 90 90 136 Shots Fired 131 | 2 16 113 Gun 55 | 2 16 37 Cannon 71 | . . 71 Launcher 5 | . . 5 Special . | . . . Kinetic 8 | . 5 3 Thermal 93 | 1 3 89 Explosive 5 | . . 5 Electromagnetic 25 | 1 8 16 Robot Hit Streak 16 | 1 16 13 Robot Miss Streak 4 | . . 4 Penetration Max . | . . . Secondary Targets . | . . . Shots Hit Robots 87 | 1 15 71 Core Hits 36 | 1 5 30 Critical Hits 2 | . . 2 Critical Kills . | . . . Critical Parts Destroyed 1 | . . 1 Melee Attacks . | . . . Impact . | . . . Slashing . | . . . Piercing . | . . . Sneak Attacks . | . . . Combat Hostiles . | . . . Follow-up Attacks . | . . . Damage Inflicted 1557 | 12 259 1286 Guns 384 | 12 175 197 Cannons 943 | . . 943 Explosions 220 | . 84 136 Melee . | . . . Ramming 10 | . . 10 Kinetic 59 | . 42 17 Thermal 1186 | 12 122 1052 Explosive 136 | . . 136 Electromagnetic 166 | . 95 71 Impact . | . . . Slashing . | . . . Piercing . | . . . Highest Corruption . | . . . Average Corruption . | . . . Corruption Purged . | . . . Overload Shots . | . . . Overflow Damage 46 | . . 46 Projectiles 19 | . . 19 Explosions 27 | . . 27 Melee . | . . . Knockbacks 1 | . . 1 Impact 1 | . . 1 Kinetic . | . . . Secondary . | . . . Self-Inflicted Damage 45 | . 42 3 Shots 1 | . 1 . Rammed 1 | . . 1 Targets Rammed 2 | . . 2 Kicked 1 | . . 1 Crushed . | . . . Highest Temperature 495 | 15 207 495 Average Temperature 163 | 10 121 169 Received Heat Transfer 276 | . 81 195 Effects 6 | . . 6 Shutdowns 3 | . . 3 Energy Bleed 2 | . . 2 Damage (minor) 1 | . . 1 Siege Activations . | . . . Robots Corrupted . | . . . Combat Hostiles . | . . . Parts Fried . | . . . Impact Corruptions . | . . . Robots Melted 1 | . . 1 Combat Hostiles 1 | . . 1 Parts Melted 9 | . . 9 Heat Transferred 2209 | 37 211 1961 Parts Sabotaged . | . . . Parts Stolen . | . . . Parts Stripped . | . . . Power Chain Reactions 1 | . 1 . Missiles Intercepted . | . . . Alert | -11 -10 -9 ------- Run | Scr Mat Mat Peak Influence 342 | 5 65 342 Average Influence 92 | . 15 130 Maximum Alert Level 1 | . . 1 Low Security (%) 84 | 100 100 77 Level 1 15 | . . 22 Level 2 . | . . . Level 3 . | . . . Level 4 . | . . . Level 5 . | . . . High Security . | . . . Max Security . | . . . Squads Dispatched 1 | . . 1 Investigation . | . . . Extermination . | . . . Reinforcement 1 | . . 1 Assault . | . . . Garrison . | . . . Intercept . | . . . Construction Impeded . | . . . Haulers Reinforced . | . . . Stealth | -11 -10 -9 --------- Run | Scr Mat Mat Distress Signals 2 | . . 2 Communications Jammed . | . . . Distress Signals . | . . . Times Spotted 33 | . 3 30 Peak Tracking Total 6 | . 2 6 Tactical Retreats 2 | . . 2 Traps | -11 -10 -9 ------- Run | Scr Mat Mat Traps Triggered . | . . . Indirectly . | . . . Trap Hack Attempts . | . . . Triggered . | . . . Disarmed . | . . . Reprogrammed . | . . . Reused . | . . . Traps Extracted . | . . . Installed . | . . . Triggered . | . . . Machines | -11 -10 -9 ---------- Run | Scr Mat Mat Machines Disabled 2 | . 1 1 Max in Single Turn 1 | . 1 1 Machines Sabotaged . | . . . Garrisons Compromised . | . . . Overloaded Fab Kills . | . . . Fab Network Shutdowns . | . . . Hacking | -11 -10 -9 --------- Run | Scr Mat Mat Machines Accessed 4 | . 1 3 Terminals 3 | . 1 2 Fabricators . | . . . Repair Stations . | . . . Recycling Units . | . . . Scanalyzers 1 | . . 1 Garrison Access . | . . . Total Hacks 6 | . 1 5 Successful 6 | . 1 5 Failed . | . . . Catastrophic . | . . . Database Lockouts . | . . . Manual . | . . . Terminals 4 | . 1 3 Fabricators . | . . . Repair Stations . | . . . Recycling Units . | . . . Scanalyzers 2 | . . 2 Garrison Access . | . . . Terminal Hacks 4 | . 1 3 Record 2 | . . 2 Prototype ID Bank 2 | . 1 1 Fabricator Hacks . | . . . Repair Station Hacks . | . . . Recycling Unit Hacks . | . . . Scanalyzer 2 | . . 2 Insert Component 1 | . . 1 Analyze 1 | . . 1 Garrison Access Hacks . | . . . Unauthorized Hacks . | . . . Terminals . | . . . Fabricators . | . . . Repair Stations . | . . . Recycling Units . | . . . Scanalyzers . | . . . Garrison Access . | . . . Data Cores Recovered . | . . . Used . | . . . Hacking Detections 1 | . . 1 Full Trace Events . | . . . Feedback Events . | . . . Feedback Blocked . | . . . Robot Schematics Acquired . | . . . Robots Built . | . . . Matter . | . . . Time . | . . . Total Robot Build Rating . | . . . Part Schematics Acquired 1 | . . 1 Parts Built . | . . . Matter . | . . . Time . | . . . Total Part Build Rating . | . . . Parts Repaired . | . . . Time . | . . . Parts Recycled . | . . . Recycled Matter . | . . . Retrieved Matter . | . . . Retrieved Components . | . . . Parts Scanalyzed 1 | . . 1 Part Schematics Acquired 1 | . . 1 Parts Damaged . | . . . Bothacking | -11 -10 -9 ------------ Run | Scr Mat Mat Used RIF Installer . | . . . Robots Hacked . | . . . Non-combat . | . . . Combat . | . . . Robot Hacks Applied . | . . . Relay Couplers Released . | . . . Robots Rewired . | . . . Allies Hacked . | . . . Hacks Repelled . | . . . Allies | -11 -10 -9 -------- Run | Scr Mat Mat Total Allies . | . . . Largest Group . | . . . Highest-Rated Group . | . . . Highest-Rated Ally . | . . . Total Orders . | . . . Ally Attacks . | . . . Total Damage . | . . . Kills . | . . . Allies Corrupted . | . . . Allies Melted . | . . . Intel | -11 -10 -9 ------- Run | Scr Mat Mat Robot Analysis Total . | . . . Derelict Logs Recovered . | . . . Drone Launches . | . . . Drone Recoveries . | . . . Exploration | -11 -10 -9 ------------- Run | Scr Mat Mat Turns Passed 1325 | 52 377 896 Spaces Moved 808 | 38 281 489 Core 14 | 10 . 4 Treads . | . . . Legs 794 | 28 281 485 Wheels . | . . . Hover . | . . . Flight . | . . . Fastest Speed 50 | 50 120 120 Average Speed 126 | 101 120 132 Slowest Speed 800 | 120 120 800 Overloaded Moves . | . . . Propulsion Burnouts . | . . . Robots Hopped . | . . . Cave-ins Triggered . | . . . Exploration Rate (%) 35 | 4 52 50 Regions Visited 2 Branch Regions . Pre-discovered Areas . | . . . Known Exits Taken 1 | . 1 . Unknown Exits Taken 1 | 1 . . Scrap Searched . | . . . Spaces Dug . | . . . Terrain Destroyed 50 | . 4 46 Melee . | . . . Projectile . | . . . AOE 50 | . 4 46 Actions | -11 -10 -9 --------- Run | Scr Mat Mat Total 980 | 49 305 626 Wait 27 | . 6 21 Move 806 | 37 280 489 Hop . | . . . Pick Up 37 | 7 6 24 Fast Attach . | . . . Attach 15 | 4 3 8 Detach . | . . . Swap 13 | . 2 11 Drop 11 | . . 11 Fire 69 | 1 8 60 Melee . | . . . Ram . | . . . Kick 2 | . . 2 Crush . | . . . Escape Stasis . | . . . Rewire . | . . . Trap . | . . . Miscellaneous . | . . . Route ------- -11/Scrapyard -10/Materials (discovered 2 exits: *Mat / [*Min]) -9/Materials (discovered 3 exits: *Mat / *Sto x2) History --------- Turn | Location | Event 15 | -11/Scrapyard | Discovered new exit (range 15) 53 | -11/Scrapyard | Entered Materials 125 | -10/Materials | Discovered new exit (range 13) 181 | -10/Materials | Discovered new exit (range 6) 328 | -10/Materials | Build established: Mutant 423 | -10/Materials | Identified exit to Materials 430 | -10/Materials | Entered another Materials area 430 | -9/Materials | Evolved 2 slots: Propulsion x1, Utility x1 746 | -9/Materials | Discovered new exit (range 15) 785 | -9/Materials | Identified exit to Storage 879 | -9/Materials | Discovered new exit (range 12) 891 | -9/Materials | Identified exit to Materials 950 | -9/Materials | Discovered exit to Storage (range 15) 1326 | -9/Materials | Self-destructed Last Messages --------------- W-16 Scout suffers critical hit. Destroyed Hover Unit. W-16 Scout destroyed. K-01 Serf collects debris. Acquired 20 matter. K-01 Serf collects debris. Acquired Minigun. K-01 Serf collects debris. K-01 Serf cleans the Neutrino Reactor. Acquired Maneuvering Thrusters. Dropped Aluminum Leg. R-06 Scavenger collects Sensor Array. R-06 Scavenger collects Visual Processing Unit. R-06 Scavenger collects Signal Interpreter. Acquired Aluminum Leg. R-06 Scavenger collects Med. Storage Unit. Acquired Aluminum Leg. O-16 Technician destroyed. Slammed into U-05 Engineer. U-05 Engineer knocked back. Map ----- +----------------------------------------------------+ | ??????????????????????????????# ?????????????????? | | ??????????????????????????????# ?????????????????? | | ??????????????????????????????# ?????????????????? | | ??????????????????????????????# ?????????????????? | | ??????????????????????????????# #####+########???? | | ??????????????????????????????# ^ #???? | | ??????????????????????????????# #???? | | ??????????????????????????????# +???? | | ??????????????????????????????# #???? | | ??????????????????????????????# [! #????? | | ??????????????????????????????# [ #### #????? | | ??????????????????????????????# = ####+###### | | ??????????????????????????????# # # | | ??????????????????????????????# % #! # | | ??????????????????????????????# # # | | ??????????????????????????""" # # # | | ??????????????????????????""" + + # | | ?????????????????????????""" # # # | | ?????????????????????????""" # """ # | | ????????????????????????? ?# """ # | | ????????????####+##############! """ % ######### | | ??????????? % a %% | | ??????????? *$= u k ######### | | #????????? ! ## ####?## | | #???????????# ## #??# # | | #???????????# @ ##!!]][ #??#### | | #???????????+ ##! ]][ #?????## | | #???????????#### u #########??????? | | #??????????????###+## g########r##??????????????? | | #???????????????????# u??????# ??????????????? | | #??????????????????# ???????# """????????????? | | #??????????????????#g a???????# """""??????????? | | #??????????????????# g????????# """""??????????? | | #??????????????????# ????????#"" """ ??????????? | | ###????????????????# ?????????#"Y ???????????? | | #????????????????# ?????????#"" ! ????????????? | | #????????????????#??????????+ ????????????? | | #????????????????????????????#######???????????? | | #????????????????????????????????????????????? " | | #????????????????????????????????????????????? " | | #??????????????????????????????????????????????? | | #??????????????????????????????????????????##### | | ??????????????????????????????????????????? | | ??????????????????????????????????????????? | | ####???????????????????????????????????????? | | #????????????????????????????????????????###### | | #?????????????????????????????????????????????? | | #?????????????????????????????????????????????? | | #?????????????????????????????????????????????? | | ####??#######????????????????????????????????????? | +----------------------------------------------------+ Best States ------------- Heat Dissipation 28 Energy Generation 12 Energy Capacity 265 Matter Stores 300 Matter Capacity 300 Sight Range 16 Terrain Scan Density 10 Armor Coverage 225 Resistance: KI 20 Resistance: TH 20 Resistance: EX 20 Resistance: EM 20 Resistance: I 20 Resistance: S 20 Resistance: P 20 Evasion (%) 50 Offensive Hacking 10 Item Schematics ----------------- Lgt. Assault Rifle | -9/Materials | Scanalyzed Robot Schematics ------------------ None Fabricated ------------ Nothing Alien Tech Used ----------------- None Achievements -------------- It's Just You Challenges ------------ None Game ------ Seed DynamicDataStreamer Manual? 0 Play Time 00:18:49 Cumulative 4.5 hours Start 2020.07.11 @ 17:03:09 End 2020.07.11 @ 17:20:46 Sessions 1 Manual Loads 0 Difficulty Adventurer Special Mode None Game No. 9 Rogue 3 Adventurer 6 Explorer 0 Win Type - Total 0 Types 0/0/0/0/0/0/0 Lore% 2 Gallery% 11 Achievement% 9 Wizard Run 0 Options --------- ASCII 0 Keyboard 0 Movement Mouse Keybinds 0 Fullscreen 1 Font 24/Smallcaps Map View 76x50 Tactical HUD 0 Map Filters NONE Filters NONE Steam 1 RUN: 92f6a8ab-037a-4f32-8639-3751b3c37d5f